Cogmind - Beta 17.1 @@@ ROGUE MODE // 2026.08.30 @ 19:18:51 Player: H3-MLN Result: Destroyed by as-34658 with Assembled F-torch Performance ------------- Evolutions (0) 0 Regions Visited (2) 400 Robots Destroyed (16) 80 Value Destroyed (198) 198 Prototype IDs (1) 20 Alien Tech Used (0) 0 Bonus (5650) 5650 TOTAL SCORE: 6348 Bonus ------- Prayed to X0-1V1 5000 Major X0-1V1 Interference 650 Cogmind --------- Core Integrity 0/100 Matter 299/900 Energy 250/250 System Corruption 0% Temperature Cool (20) Movement Treading (160) Location -10/Mines Parts ------- > --- POWER (1) -------- Ion Engine > --- PROPULSION (2) --- Light Treads Light Treads > --- UTILITY (2) ------ Large Storage Unit Self-contained Transmogrifier > --- WEAPON (2) ------- Assault Rifle Battle Rifle (fused) > --- INVENTORY (15) --- Ion Engine Large Matter Pod (0) Seismic Detector X0-1V1's Piety Tracker EM Pulse Gun Small Laser Datajack Mining Laser Peak State ------------ > --- POWER ------------ Ion Engine > --- PROPULSION ------- Light Treads Light Treads > --- UTILITY ---------- Large Storage Unit Self-contained Transmogrifier > --- WEAPON ----------- Assault Rifle Battle Rifle > --- INVENTORY -------- Ion Engine Large Matter Pod Seismic Detector X0-1V1's Piety Tracker EM Pulse Gun Small Laser Datajack Mining Laser [Rating: 18] Favorites ----------- Power Ion Engine Engine Ion Engine Propulsion Light Treads Treads Light Treads Utility Large Storage Unit Device Seismic Detector Storage Large Storage Unit Weapon Assault Rifle Ballistic Gun Assault Rifle Build | -11 -10 -10 ------- Run | Yrd Mat Min Slots Evolved . | . . . Power . | . . . Propulsion . | . . . Utility . | . . . Weapon . | . . . Parts Attached 8 | 7 1 . Power 1 | 1 . . Engine 1 | 1 . . Core . | . . . Reactor . | . . . Propulsion 2 | 2 . . Treads 2 | 2 . . Leg . | . . . Wheel . | . . . Hover . | . . . Flight . | . . . Utility 3 | 2 1 . Device 1 | 1 . . Storage 2 | 1 1 . Processor . | . . . Hackware . | . . . Protection . | . . . Artifact . | . . . Weapon 2 | 2 . . Energy Gun . | . . . Energy Cannon . | . . . Ballistic Gun 2 | 2 . . Ballistic Cannon . | . . . Launcher . | . . . Special Weapon . | . . . Impact Weapon . | . . . Slashing Weapon . | . . . Piercing Weapon . | . . . Special Melee Weapon . | . . . Unidentified Prototypes . | . . . Parts Lost . | . . . Power . | . . . Propulsion . | . . . Utility . | . . . Weapon . | . . . Highest Loss Streak . | . . . To Critical Strikes . | . . . Average Backups 4 | 1 4 8 Power . | . 1 1 Propulsion . | . . . Utility . | . . 3 Weapon 2 | 1 2 3 Tool/Special . | . . . Unused Backups 7 | . 1 6 Power 1 | . . 1 Propulsion . | . . . Utility 2 | . . 2 Weapon 3 | . 1 2 Tool/Special 1 | . . 1 Average Slot Usage (%) 100 | . 100 100 Engine 14 | . 14 14 Treads 28 | . 28 28 Device 14 | . 14 14 Storage 14 | . 14 14 Ballistic Gun 28 | . 28 28 Peak Build Rating 18 | 7 17 18 Average Rating 8 | 5 8 17 On Entrance 8 | . 7 17 Avg Prop Armor Cover (%) . | . . . Naked Turns . | . . . Heaviest Build 29 | 14 29 29 Greatest Support 40 | 40 40 40 Greatest Overweight (x) . | . . . Average Overweight (x) . | . . . Largest Inventory Capacity 15 | 8 15 15 Average Capacity 13 | 7 14 15 Most Carried 9 | 3 9 8 Average Carried 4 | 1 4 8 Final Capacity 15 | 8 15 15 Final Carried 8 | 3 8 8 Transmogrified Parts 1 | . . 1 Integrity Recovered 16 | . . 16 Class Distribution -------------------- 100% | Mutant Dominant Class ---------------- Mutant | -10/Materials Mutant | -10/Mines Resources | -11 -10 -10 ----------- Run | Yrd Mat Min Matter Collected 435 | 310 86 39 Remotely . | . . . Salvage Created 408 | 151 161 96 Parts 32 | 7 12 13 Haulers Intercepted . | . . . Recyclers Shooed . | . . . Parts Field Recycled . | . . . Retrieved Matter . | . . . Parts Self-Destructed . | . . . Prevented . | . . . Parts Restored . | . . . Kills | -11 -10 -10 ------- Run | Yrd Mat Min Combat Hostiles Destroyed 10 | . 5 5 Guns 10 | . 5 5 Classes Destroyed 5 | 2 3 . Tunneler 4 | 3 . 1 Recycler 1 | 1 . . Watcher 1 | . 1 . Swarmer 8 | . 3 5 Grunt 2 | . 2 . Best Kill Streak 6 | 4 4 6 Combat Bots Only 5 | . 3 5 Max Kills in Single Turn 1 | 1 1 1 Gunslinging . | . . . Exploded . | . . . Melee . | . . . Uniques/NPCs Destroyed . | . . . Combat | -11 -10 -10 -------- Run | Yrd Mat Min Hostile Shots Fired 51 | . 19 32 Missed 11 | . 6 5 Hits 40 | . 13 27 Projectile 40 | . 13 27 Damage Taken 374 | . 109 265 Core 102 | . 44 58 Absorbed by Shields . | . . . Core Remaining (%) 100 | 100 . . Volleys Fired 36 | 10 20 6 Largest 2 | 2 2 2 Hottest 45 | 40 40 45 Shots Fired 72 | 20 40 12 Gun 72 | 20 40 12 Cannon . | . . . Launcher . | . . . Special . | . . . Kinetic 72 | 20 40 12 Thermal . | . . . Explosive . | . . . Electromagnetic . | . . . Robot Hit Streak 6 | 4 6 4 Robot Miss Streak 2 | 2 2 2 Penetration Max . | . . . Secondary Targets 2 | . . 2 Max Gunslinging Chain 1 | . . 1 Shots Hit Robots 43 | 11 25 7 Core Hits 20 | 5 9 6 Critical Kills . | . . . Critical Parts Destroyed . | . . . Critical Strikes . | . . . Melee Attacks . | . . . Impact . | . . . Slashing . | . . . Piercing . | . . . Sneak Attacks . | . . . Combat Hostiles . | . . . Follow-up Attacks . | . . . Damage Inflicted 523 | 116 259 148 Guns 523 | 116 259 148 Cannons . | . . . Explosions . | . . . Melee . | . . . Ramming . | . . . Kinetic 523 | 116 259 148 Thermal . | . . . Explosive . | . . . Electromagnetic . | . . . Impact . | . . . Slashing . | . . . Piercing . | . . . Highest Corruption . | . . . Average Corruption . | . . . Corruption Purged . | . . . Corruption Blocked . | . . . Overload Shots . | . . . Overflow Damage . | . . . Projectiles . | . . . Explosions . | . . . Melee . | . . . Knockbacks . | . . . Impact . | . . . Kinetic . | . . . Secondary . | . . . Self-Inflicted Damage . | . . . Shots . | . . . Rammed . | . . . Targets Rammed . | . . . Kicked . | . . . Crushed . | . . . Highest Temperature 6 | . 6 4 Average Temperature 3 | . 6 3 Received Heat Transfer 38 | . 18 20 Siege Activations . | . . . Martial Activations . | . . . Shielding Activations . | . . . Robots Disrupted . | . . . Combat Hostiles . | . . . Robots Corrupted . | . . . Combat Hostiles . | . . . Parts Fried . | . . . Impact Corruptions . | . . . Robots Melted . | . . . Combat Hostiles . | . . . Parts Melted . | . . . Heat Transferred . | . . . Parts Sabotaged . | . . . Parts Stolen . | . . . Parts Stripped . | . . . Power Chain Reactions . | . . . Alert | -11 -10 -10 ------- Run | Yrd Mat Min Maximum Alert Level . | . . . Low Security (%) 100 | 100 100 100 Level 1 . | . . . Level 2 . | . . . Level 3 . | . . . Level 4 . | . . . Level 5 . | . . . High Security . | . . . Max Security . | . . . Peak Influence 95 | 10 95 95 Initial . | . . . Average 19 | 1 20 28 Influence Increases 270 | 20 145 105 Destroy 0b10 Robot/C 200 | . 100 100 Destroy 0b10 Robot/NC 30 | 20 5 5 Destroy Leader 12 | . 12 . Successful Hack 13 | . 13 . Lose Combat Pursuer 15 | . 15 . Influence Decreases 185 | 20 145 20 Time Decay 185 | 20 145 20 Squads Dispatched . | . . . Investigation . | . . . Extermination . | . . . Reinforcement . | . . . Assault . | . . . Garrison . | . . . Intercept . | . . . Searches Triggered . | . . . Construction Impeded . | . . . Haulers Reinforced . | . . . Active Scanning Responses . | . . . Cargo Convoy Interrupts . | . . . Stealth | -11 -10 -10 --------- Run | Yrd Mat Min Distress Signals 1 | . 1 . Communications Jammed . | . . . Distress Signals . | . . . Times Spotted 22 | . 7 15 Peak Tracking Total 13 | . 4 13 Tactical Retreats 1 | . 1 . Traps | -11 -10 -10 ------- Run | Yrd Mat Min Traps Triggered . | . . . Indirectly . | . . . Trap Hack Attempts . | . . . Triggered . | . . . Disarmed . | . . . Reprogrammed . | . . . Reused . | . . . Traps Extracted . | . . . Installed . | . . . Triggered . | . . . Machines | -11 -10 -10 ---------- Run | Yrd Mat Min Machines Disabled . | . . . Max in Single Turn . | . . . Machines Repaired . | . . . Machines Dismantled . | . . . Machines Sabotaged . | . . . Overloaded Fab Kills . | . . . Hacking | -11 -10 -10 --------- Run | Yrd Mat Min Machines Accessed 4 | . 4 . Terminals 4 | . 4 . Fabricators . | . . . Repair Stations . | . . . Recycling Units . | . . . Scanalyzers . | . . . Garrison Access . | . . . Total Hacks 9 | . 9 . Successful 3 | . 3 . Failed 6 | . 6 . Catastrophic 2 | . 2 . Database Lockouts . | . . . Manual 9 | . 9 . Terminals 9 | . 9 . Fabricators . | . . . Repair Stations . | . . . Recycling Units . | . . . Scanalyzers . | . . . Garrison Access . | . . . Terminal Hacks 3 | . 3 . Part Schematic 1 | . 1 . Robot Analysis 2 | . 2 . Fabricator Hacks . | . . . Repair Station Hacks . | . . . Recycling Unit Hacks . | . . . Scanalyzer . | . . . Garrison Access Hacks . | . . . Unauthorized Hacks . | . . . Terminals . | . . . Fabricators . | . . . Repair Stations . | . . . Recycling Units . | . . . Scanalyzers . | . . . Garrison Access . | . . . Data Cores Recovered . | . . . Used . | . . . Hacking Detections 4 | . 4 . Full Trace Events . | . . . Feedback Events . | . . . Feedback Blocked . | . . . Robot Schematics Acquired . | . . . Robots Built . | . . . Authchips . | . . . Time . | . . . Total Robot Build Rating . | . . . Part Schematics Acquired 1 | . 1 . Parts Built . | . . . Authchips . | . . . Time . | . . . Total Part Build Rating . | . . . Part Studies Acquired . | . . . Parts Repaired . | . . . Time . | . . . Parts Recycled . | . . . Recycled Matter . | . . . Retrieved Matter . | . . . Retrieved Components . | . . . Parts Scanalyzed . | . . . Part Schematics Acquired . | . . . Parts Damaged . | . . . Bothacking | -11 -10 -10 ------------ Run | Yrd Mat Min Used RIF Installer . | . . . Robots Hacked . | . . . Non-combat . | . . . Combat . | . . . Robot Hacks Applied . | . . . Relay Couplers Released . | . . . Fabnet Peak Effective % . | . . . Robots Rewired . | . . . Allies Hacked . | . . . Hacks Repelled . | . . . Allies | -11 -10 -10 -------- Run | Yrd Mat Min Total Allies 1 | . . 1 Largest Group 1 | . . 1 Highest-Rated Group 90 | . . 90 Highest-Rated Ally 90 | . . 90 Total Orders . | . . . Ally Attacks . | . . . Total Damage . | . . . Kills . | . . . Allies Corrupted . | . . . Allies Melted . | . . . X0-1V1 Amusement Gains 29 | . 8 21 Average Entertainment 21 | . 15 25 Good Acts 3 | . . 3 Bad Acts 3 | . . 3 Intel | -11 -10 -10 ------- Run | Yrd Mat Min Active Infowar (turns) 687 | 14 673 . Seismic 687 | 14 673 . Robot Analysis Total 2 | . 2 . Derelict Logs Recovered . | . . . Drone Launches . | . . . Drone Recoveries . | . . . Exploration | -11 -10 -10 ------------- Run | Yrd Mat Min Turns Passed 977 | 133 751 93 Spaces Moved 428 | 60 345 23 Core 3 | 3 . . Treads 425 | 57 345 23 Legs . | . . . Wheels . | . . . Hover . | . . . Flight . | . . . Fastest Speed 50 | 50 160 160 Average Speed 159 | 154 160 160 Slowest Speed 160 | 160 160 160 Overloaded Moves . | . . . Propulsion Burnouts . | . . . Robots Hopped . | . . . Potential Cave-ins . | . . . Cave-ins Triggered . | . . . Exploration Rate (%) 27 | 6 57 18 Regions Visited 2 Branch Regions 1 Pre-discovered Areas . | . . . Known Exits Taken . | . . . Unknown Exits Taken 2 | 1 1 . Scrap Searched . | . . . Spaces Dug . | . . . Terrain Destroyed . | . . . Melee . | . . . Projectile . | . . . AOE . | . . . Terrain Rammed . | . . . Walls Destroyed . | . . . Machines Disabled . | . . . Actions | -11 -10 -10 --------- Run | Yrd Mat Min Total 655 | 79 509 67 Wait 174 | . 136 38 Move 426 | 59 344 23 Hop . | . . . Pick Up 9 | 3 6 . Fast Attach 7 | 7 . . Attach . | . . . Detach . | . . . Swap 1 | . 1 . Drop 2 | . 2 . Fire 36 | 10 20 6 Melee . | . . . Ram . | . . . Kick . | . . . Crush . | . . . Escape Stasis . | . . . Rewire . | . . . Trap . | . . . Miscellaneous . | . . . Route ------- -11/Scrapyard -10/Materials (discovered 3 exits: [*Mat] / [*Min] / [*Sub]) -10/Mines (discovered 1 exit: [*Sub]) History --------- Turn | Location | Event 8 | -11/Scrapyard | Discovered new exit (range 15) 134 | -11/Scrapyard | Entered Materials 316 | -10/Materials | Build established: Mutant 403 | -10/Materials | Discovered new exit (range 5) 774 | -10/Materials | Discovered new exit (range 6) 807 | -10/Materials | Made a sacrifice at D.C.S.S. Altar Unit 807 | -10/Materials | Forcibly received Sfc. Transmogifier from X0-1V1 852 | -10/Materials | Discovered new exit (range 8) 885 | -10/Materials | Entered Mines 886 | -10/Mines | Assembled infested the area 941 | -10/Mines | X0-1V1 sent hostile S-10 Pest (x5) 943 | -10/Mines | Core integrity fell below 50% 952 | -10/Mines | Core integrity fell below 20% 973 | -10/Mines | X0-1V1 vaporized surrounding terrain (radius 21) 973 | -10/Mines | Discovered new exit (range 12) 974 | -10/Mines | X0-1V1 sent allied H-61 Shepherd (x1) 978 | -10/Mines | Destroyed by as-34658 with Assembled F-torch Last Messages --------------- 00941_ T-07 Excavator is excavating. 00941_ S-10 Pest destroyed. 00941_ Switching to secondary target: S-10 Pest. 00944_ S-10 Pest destroyed. 00945_ T-07 Excavator is excavating. 00947_ S-10 Pest destroyed. 00947_ Switching to secondary target: S-10 Pest. 00947_ Destroyed Flight Unit. 00949_ T-07 Excavator is excavating. 00950_ T-07 Excavator destroyed. 00953_ S-10 Pest destroyed. 00958_ Acquired 16 matter. 00960_ Acquired 12 matter. 00962_ Acquired 11 matter. Surrounding terrain vaporized. 00973_ X0-1V1: "Learned that one from the Sigix." 00973_ EXIT=FOUND 00974_ The cosmic winds blow in a new direction. H-61 Shepherd form resolidifies at new position. 00978_ X0-1V1 chortles! Map ----- +----------------------------------------------------+ | ?????????????????????????????????????????????????? | | ?????????????????????????????????????????????????? | | ?????????????????????????????????????????????????? | | ?????????????????????????????????????????????????? | | ?????????????????????????????????????????????????? | | ?????????????????????????????????????????????????? | | ?????????????????????????????????????????????????? | | ?????????????????????????????????????????????????? | | ??????????????????????? "" ?????????????????????? | | ????????????????????? " " ???????????????????? | | ??????????????????" "" ; "" ????????????????? | | ???????????????? """ ; ;; ;;" ""??????????????? | | ??????????????"""" ; ;;;;; ;;;; "" ????????????? | | ?????????????? ; a ;;; ????????????? | | ?????????????";;; ;;;;;;; ;; ???????????? | | ????????????? a ; ;;a;; ;; ???????????? | | ???????????? ;; ; ; ;;;; ??????????? | | ???????????? ;; ; ;a;;; ;;;; ??????????? | | ???????????? ;; ; ; ; ; ??????????? | | ??????????? aa;; ; ; ; ;;;;; ?????????? | | ??????????? ;; ; ; ; ; ; ?????????? | | ??????????" aa;;; ; ; ; ; ; ????????? | | ??????????";;;< ;; ; ; ; ; ;; ????????? | | ?????????? ;; a ; ; ; ; ; ????????? | | ?????????? ;; ; ;; ;;; ;;;; ;; ????????? | | ?????????? ;; |! ; ; @ ;; ;; ????????? | | ?????????? ;;*%;; ; ; H; ????????? | | ?????????? ; ;; ; ;;????????? | | ??????????? ; ;;; ; ?????????? | | ??????????? ;; ;=*; ;; ;; ?????????? | | ???????????? ;< ; %= ;;;;;; ??????????? | | ???????????? ;; ;= =! ??????????? | | ???????????? [* =| ??????????? | | ????????????? %=% ???????????? | | ????????????? =* ???????????? | | ?????????????? ????????????? | | ?????????????? ????????????? | | ???????????????? ??????????????? | | ??????????????????? ?????????????????? | | | | | | | | | | | | | | | | | | | | | | | +----------------------------------------------------+ Best States ------------- Heat Dissipation 25 Energy Generation 10 Energy Capacity 250 Matter Stores 300 Matter Capacity 900 Sight Range 16 Terrain Scan Density 10 Evasion (%) 40 Recoil Reduction 2 Item Schematics ----------------- Huge Storage Unit | -10/Materials | Hacked Robot Schematics ------------------ None Fabricated ------------ Nothing Repaired ---------- Nothing Studied --------- None Alien Tech Used ----------------- None Achievements -------------- None Challenges ------------ None Game ------ Seed TiamatBoreDirector Manual? 0 Play Time 00:07:05 Cumulative 1754.0 hours Start 2026.08.30 @ 19:10:53 End 2026.08.30 @ 19:18:51 Sessions 2 Manual Loads 0 Difficulty Rogue Special Mode None Game No. 531 Rogue 523 Adventurer 4 Explorer 4 Win Type - Total 70 Types 31/9/5/4/2/5/7/2/3/2 Lore% 97 Gallery% 96 Achievement% 92 Wizard Run 0 Options --------- Layout 0 ASCII 0 Keyboard 0 Movement Numpad Keybinds 0 Fullscreen 2 Font 18/SmallcapsGlow Map View 76x50 Zoom Use 0% Tactical HUD 1 Map Filters NONE Filters NONE Steam 1 RUN: c7c9b2d8-8010-4576-814e-a993beba6c04